fUST/lending_fUST_20250911
["ID","MTS","AMOUNT","RATE_DAILY","PERIOD"]
[384813230,1757568652821,-549.11,0.00014891,2]
[384813232,1757568652830,-467.25,0.00014891,2]
[384813234,1757568652839,-2151.42,0.00014891,2]
[384813236,1757568652848,-3384.26,0.00014891,2]
[384813238,1757568652858,-480.0,0.00014891,2]
[384813240,1757568652866,-502.5421363,0.00014922,2]
[384813242,1757568652875,-501.15577929,0.00014922,2]
[384813244,1757568652885,-1500.0,0.00014968,2]
[384813246,1757568652895,-1500.0,0.00014968,2]
[384813248,1757568652904,-1500.0,0.00014968,2]
[384813250,1757568652913,-1500.0,0.00014968,2]
[384813252,1757568652922,-1500.0,0.00014968,2]
[384813254,1757568652932,-1500.0,0.00014968,2]
[384813256,1757568652941,-1500.0,0.00014968,2]
[384813258,1757568652950,-1500.0,0.00014968,2]
[384813260,1757568652959,-480.0,0.0001499,2]
[384813262,1757568652969,-549.38,0.0001499,2]
[384813263,1757568652978,-383.9,0.0001499,2]
[384813265,1757568652988,-640.63,0.0001499,2]
[384813267,1757568652997,-545.27,0.0001499,2]
[384813269,1757568653007,-1899.36,0.0001499,2]
[384813271,1757568653016,-480.0,0.0001499,2]
[384813273,1757568653026,-480.0,0.00014991,2]
[384813275,1757568653035,-480.0,0.00014991,2]
[384813277,1757568653044,-480.0,0.00014991,2]
[384813279,1757568653053,-501.03101016,0.00014991,2]
[384813281,1757568653063,-480.0,0.00014994,2]
[384813283,1757568653072,-1282.08,0.00014994,2]
[384813285,1757568653082,-545.27,0.00014997,2]
[384813287,1757568653091,-151.0,0.00015,2]
[384813289,1757568653102,-215.0,0.00015001,2]
[384813291,1757568653111,-500.0,0.00015001,2]
[384813293,1757568653121,-1003.49835,0.00015017,2]
[384813295,1757568653130,-276.671913,0.00015068,2]
[384813297,1757568653139,-500.0,0.00015068,2]
[384813299,1757568653148,-420.0,0.00015116,2]
[384813301,1757568653157,-1002.30528819,0.00015129,2]
[384813303,1757568653167,-324.28321046,0.00015129,2]
[384813305,1757568653176,-1000.0,0.00015135,2]
[384813307,1757568653185,-480.0,0.00015165,2]
[384813309,1757568653195,-480.0,0.00015165,2]
[384813311,1757568653204,-2967.6,0.00015165,2]
[384813313,1757568653214,-480.0,0.00015165,2]
[384813315,1757568653223,-796.52,0.00015165,2]
[384813317,1757568653233,-555.6,0.00015165,2]
[384813319,1757568653242,-480.0,0.00015165,2]
[384813321,1757568653252,-868.52,0.00015165,2]
[384813323,1757568653261,-480.0,0.00015165,2]
[384813324,1757568653271,-480.0,0.00015165,2]
[384813326,1757568653280,-549.11,0.00015165,2]
[384813328,1757568653290,-2151.42,0.00015165,2]
[384813330,1757568653299,-3384.26,0.00015165,2]
[384813332,1757568653310,-480.0,0.00015165,2]
[384813334,1757568653319,-151.0,0.000152,2]
[384813335,1757568653328,-151.0,0.000152,2]
[384813336,1757568653338,-283.2,0.00015264,2]
[384813337,1757568653347,-549.38,0.00015264,2]
[384813338,1757568653357,-640.63,0.00015264,2]
[384813339,1757568653367,-1899.36,0.00015264,2]
[384813340,1757568653376,-480.0,0.00015264,2]
[384813341,1757568653386,-480.0,0.00015265,2]
[384813342,1757568653395,-480.0,0.00015265,2]
[384813343,1757568653404,-480.0,0.00015265,2]
[384813344,1757568653413,-545.27,0.00015267,2]
[384813345,1757568653423,-480.0,0.00015268,2]
[384813346,1757568653432,-1282.08,0.00015268,2]
[384813347,1757568653441,-1500.0,0.00015268,2]
[384813348,1757568653450,-911.06922566,0.00015268,2]
[384813349,1757568653460,-1003.71301869,0.00015268,2]
[384813350,1757568653469,-388.5590871,0.00015275,2]
[384813351,1757568653478,-151.0,0.000154,2]
[384813352,1757568653488,-693.55066648,0.00015439,2]
[384813353,1757568653497,-480.0,0.00015439,2]
[384813354,1757568653508,-291.33000515,0.00015439,2]
[384813355,1757568653517,-2967.6,0.00015439,2]
[384813356,1757568653526,-480.0,0.00015439,2]
[384813357,1757568653535,-796.52,0.00015439,2]
[384813358,1757568653544,-555.6,0.00015439,2]
[384813359,1757568653552,-480.0,0.00015439,2]
[384813360,1757568653561,-868.52,0.00015439,2]
[384813361,1757568653570,-480.0,0.00015439,2]
[384813362,1757568653582,-480.0,0.00015439,2]
[384813363,1757568653593,-549.11,0.00015439,2]
[384813364,1757568653601,-2151.42,0.00015439,2]
[384813366,1757568653611,-3384.26,0.00015439,2]
[384813367,1757568653620,-480.0,0.00015439,2]
[384813369,1757568653630,-545.27,0.00015445,2]
[384813371,1757568653639,-545.27,0.00015445,2]
[384813373,1757568653648,-200.0,0.00015445,2]
[384813375,1757568653657,-500.88790755,0.00015449,2]
[384813377,1757568653666,-200.0,0.00015499,2]
[384813379,1757568653676,-545.27,0.00015499,2]
[384813381,1757568653685,-26256.71184149,0.000155,2]
[384813383,1757568653695,-2006.10206375,0.00015516,2]
[384813385,1757568653704,-2000.0,0.00015516,2]
[384813387,1757568653713,-1602.98973203,0.00015516,2]
[384813389,1757568653722,-2000.0,0.00015516,2]
[384813391,1757568653731,-2000.0,0.00015516,2]
[384813393,1757568653740,-2000.0,0.00015516,2]
[384813395,1757568653751,-1006.81842861,0.00015516,2]
[384813397,1757568653759,-2000.0,0.00015516,2]
[384813399,1757568653769,-549.38,0.00015538,2]
[384813402,1757568653778,-640.63,0.00015538,2]
[384813404,1757568653787,-545.27,0.00015538,2]
[384813406,1757568653797,-1899.36,0.00015538,2]
[384813408,1757568653806,-480.0,0.00015538,2]
[384813410,1757568653815,-480.0,0.00015539,2]
[384813412,1757568653825,-480.0,0.00015539,2]
[384813414,1757568653833,-480.0,0.00015539,2]
[384813416,1757568653842,-480.0,0.00015542,2]
[384813417,1757568653851,-1282.08,0.00015542,2]
[384813419,1757568653860,-4003.11981732,0.00015663,2]
[384813421,1757568653869,-504.15667014,0.00015683,2]
[384813424,1757568653879,-294.63203454,0.00015713,2]
[384813426,1757568653888,-2967.6,0.00015713,2]
[384813427,1757568653897,-480.0,0.00015713,2]
[384813429,1757568653907,-796.52,0.00015713,2]
[384813431,1757568653916,-555.6,0.00015713,2]
[384813433,1757568653925,-480.0,0.00015713,2]
[384813435,1757568653935,-868.52,0.00015713,2]
[384813438,1757568653944,-480.0,0.00015713,2]
[384813440,1757568653953,-480.0,0.00015713,2]
[384813441,1757568653962,-549.11,0.00015713,2]
[384813443,1757568653971,-2151.42,0.00015713,2]
[384813445,1757568653981,-3384.26,0.00015713,2]
[384813448,1757568653990,-480.0,0.00015713,2]
[384813450,1757568654000,-2449.7491993,0.00015761,2]
[384813452,1757568654009,-545.27,0.00015779,2]
[384813453,1757568654018,-3000.0,0.0001578,2]
[384813455,1757568654027,-549.38,0.00015812,2]
[384813457,1757568654037,-640.63,0.00015812,2]
[384813460,1757568654047,-1899.36,0.00015812,2]
[384813462,1757568654056,-480.0,0.00015812,2]
[384813464,1757568654065,-443.85,0.00015813,2]
[384813466,1757568654075,-480.0,0.00015813,2]
[384813468,1757568654084,-480.0,0.00015813,2]
[384813470,1757568654093,-480.0,0.00015816,2]
[384813472,1757568654102,-1282.08,0.00015816,2]
[384813474,1757568654112,-545.27,0.00015816,2]
[384813475,1757568654120,-2000.0,0.00015816,2]
[384813477,1757568654130,-160.0,0.00015824,2]
[384813479,1757568654139,-1118.6905569,0.00015832,2]
[384813481,1757568654148,-151.0,0.000159,2]
[384813483,1757568654157,-720.0,0.00015948,2]
[384813485,1757568654167,-2967.6,0.00015987,2]
[384813487,1757568654176,-480.0,0.00015987,2]
[384813489,1757568654185,-796.52,0.00015987,2]
[384813491,1757568654194,-555.6,0.00015987,2]
[384813493,1757568654203,-480.0,0.00015987,2]
[384813495,1757568654212,-868.52,0.00015987,2]
[384813497,1757568654221,-480.0,0.00015987,2]
[384813499,1757568654230,-480.0,0.00015987,2]
[384813501,1757568654239,-549.11,0.00015987,2]
[384813503,1757568654248,-2151.42,0.00015987,2]
[384813505,1757568654258,-3384.26,0.00015987,2]
[384813507,1757568654268,-480.0,0.00015987,2]
[384813509,1757568654277,-1458.30515009,0.00016064,2]
[384813511,1757568654286,-2500.0,0.00016064,2]
[384813513,1757568654296,-2500.0,0.00016064,2]
[384813515,1757568654305,-2500.0,0.00016064,2]
[384813517,1757568654315,-511.64646584,0.00016064,2]
[384813519,1757568654323,-549.38,0.00016086,2]
[384813521,1757568654333,-640.63,0.00016086,2]
[384813523,1757568654342,-545.27,0.00016086,2]
[384813525,1757568654351,-1899.36,0.00016086,2]
[384813528,1757568654360,-480.0,0.00016086,2]
[384813530,1757568654370,-480.0,0.00016087,2]
[384813531,1757568654379,-480.0,0.00016087,2]
[384813533,1757568654388,-480.0,0.0001609,2]
[384813535,1757568654397,-1282.08,0.0001609,2]
[384813537,1757568654407,-1000.0,0.00016164,2]
[384813539,1757568654416,-546.6129311,0.00016173,2]
[384813541,1757568654425,-500.40085267,0.00016185,2]
[384813543,1757568654434,-2967.6,0.00016261,2]
[384813545,1757568654443,-480.0,0.00016261,2]
[384813547,1757568654452,-796.52,0.00016261,2]
[384813549,1757568654461,-555.6,0.00016261,2]
[384813551,1757568654470,-480.0,0.00016261,2]
[384813553,1757568654479,-868.52,0.00016261,2]
[384813555,1757568654488,-480.0,0.00016261,2]
[384813557,1757568654498,-480.0,0.00016261,2]
[384813559,1757568654507,-549.11,0.00016261,2]
[384813562,1757568654516,-2151.42,0.00016261,2]
[384813564,1757568654526,-3384.26,0.00016261,2]
[384813566,1757568654535,-480.0,0.00016261,2]
[384813568,1757568654545,-600.0,0.0001632,2]
[384813570,1757568654554,-175.51328567,0.00016338,2]
[384813572,1757568654563,-545.27,0.00016347,2]
[384813573,1757568654572,-545.27,0.00016347,2]
[384813575,1757568654586,-545.27,0.00016347,2]
[384813577,1757568654595,-545.27,0.00016347,2]
[384813579,1757568654604,-545.39426351,0.00016347,2]
[384813582,1757568654613,-549.38,0.0001636,2]
[384813583,1757568654622,-640.63,0.0001636,2]
[384813585,1757568654631,-1899.36,0.0001636,2]
[384813587,1757568654641,-480.0,0.0001636,2]
[384813589,1757568654650,-480.0,0.00016361,2]
[384813591,1757568654662,-480.0,0.00016361,2]
[384813593,1757568654672,-480.0,0.00016364,2]
[384813595,1757568654681,-1282.08,0.00016364,2]
[384813597,1757568654690,-2500.0,0.00016364,2]
[384813599,1757568654700,-260.0,0.00016371,2]
[384813601,1757568654710,-3000.0,0.000164,2]
[384813603,1757568654719,-3000.0,0.000164,2]
[384813605,1757568654728,-3000.0,0.000164,2]
[384813608,1757568654737,-520.0,0.00016438,3]
[384813609,1757568654746,-520.0,0.00016438,3]
[384813611,1757568654756,-520.0,0.00016438,3]
[384813614,1757568654766,-520.0,0.00016438,3]
[384813615,1757568654775,-384.6663081,0.00016438,3]
[384813617,1757568654784,-500.0,0.00016438,2]
[384813620,1757568654793,-151.0,0.00016438,2]
[384813622,1757568654803,-151.0,0.00016438,2]
[384813624,1757568654812,-151.0,0.00016438,2]
[384813626,1757568654823,-151.0,0.00016438,2]
[384813627,1757568654832,-151.0,0.00016438,2]
[384813629,1757568654842,-151.0,0.00016438,2]
[384813632,1757568654851,-151.0,0.00016438,2]
[384813634,1757568654861,-151.0,0.00016438,2]
[384813636,1757568654870,-151.0,0.00016438,2]
[384813638,1757568654879,-151.0,0.00016438,2]
[384813640,1757568654888,-151.0,0.00016438,2]
[384813642,1757568654898,-151.0,0.00016438,2]
[384813644,1757568654907,-151.0,0.00016438,2]
[384813646,1757568654916,-300.92701,0.00016438,2]
[384813648,1757568654925,-151.0,0.00016438,2]
[384813650,1757568654934,-151.0,0.00016438,2]
[384813652,1757568654944,-151.0,0.00016438,2]
[384813654,1757568654952,-151.724703,0.00016438,2]
[384813656,1757568654961,-151.652358,0.00016438,2]
[384813657,1757568654970,-237.095731,0.00016477,2]
[384813659,1757568654979,-697.797589,0.00016477,2]
[384813661,1757568654989,-602.99895754,0.0001649,2]
[384813663,1757568654998,-549.49999951,0.000165,2]
[384813665,1757568655007,-2967.6,0.00016535,2]
[384813667,1757568655017,-480.0,0.00016535,2]
[384813669,1757568655026,-796.52,0.00016535,2]
[384813672,1757568655035,-555.6,0.00016535,2]
[384813673,1757568655044,-480.0,0.00016535,2]
[384813676,1757568655054,-868.52,0.00016535,2]
[384813678,1757568655063,-480.0,0.00016535,2]
[384813680,1757568655072,-480.0,0.00016535,2]
[384813681,1757568655081,-549.11,0.00016535,2]
[384813683,1757568655091,-2151.42,0.00016535,2]
[384813696,1757568655193,-3384.26,0.00016535,2]
[384813698,1757568655203,-480.0,0.00016535,2]
[384813700,1757568655212,-587.0,0.00016564,2]
[384813702,1757568655221,-4003.11981732,0.00016597,2]
[384813704,1757568655230,-151.0,0.000166,2]
[384813706,1757568655239,-3000.0,0.00016612,2]
[384813708,1757568655248,-3000.0,0.00016612,2]
[384813710,1757568655258,-3000.0,0.00016612,2]
[384813712,1757568655267,-549.38,0.00016634,2]
[384813713,1757568655276,-640.63,0.00016634,2]
[384813715,1757568655285,-1899.36,0.00016634,2]
[384813717,1757568655295,-480.0,0.00016634,2]
[384813719,1757568655304,-480.0,0.00016635,2]
[384813721,1757568655313,-480.0,0.00016635,2]
[384813723,1757568655322,-480.0,0.00016638,2]
[384813725,1757568655331,-1282.08,0.00016638,2]
[384813727,1757568655341,-151.0,0.000167,2]
[384813729,1757568655350,-500.0,0.00016712,2]
[384813731,1757568655359,-2967.6,0.00016809,2]
[384813734,1757568655369,-480.0,0.00016809,2]
[384813736,1757568655378,-796.52,0.00016809,2]
[384813738,1757568655388,-555.6,0.00016809,2]
[384813739,1757568655398,-480.0,0.00016809,2]
[384813741,1757568655407,-868.52,0.00016809,2]
[384813743,1757568655418,-480.0,0.00016809,2]
[384813745,1757568655427,-480.0,0.00016809,2]
[384813747,1757568655436,-549.11,0.00016809,2]
[384813749,1757568655445,-2151.42,0.00016809,2]
[384813751,1757568655454,-3384.26,0.00016809,2]
[384813753,1757568655464,-480.0,0.00016809,2]
[384813755,1757568655473,-5357.75190738,0.00016848,2]
[384813757,1757568655482,-5171.2571588,0.00016863,2]
[384813759,1757568655491,-1630.8171744,0.00016865,2]
[384813761,1757568655500,-549.38,0.00016908,2]
[384813763,1757568655511,-640.63,0.00016908,2]
[384813765,1757568655521,-1899.36,0.00016908,2]
[384813767,1757568655530,-480.0,0.00016908,2]
[384813770,1757568655540,-480.0,0.00016909,2]
[384813772,1757568655549,-480.0,0.00016909,2]
[384813774,1757568655558,-480.0,0.00016912,2]
[384813776,1757568655569,-1282.08,0.00016912,2]
[384813777,1757568655581,-3000.0,0.00016912,2]
[384813779,1757568655591,-360.0,0.00016919,2]
[384813781,1757568655600,-510.04432197,0.00016986,2]
[384813783,1757568655609,-151.0,0.00017,2]
[384813785,1757568655618,-500.0,0.00017065,2]
[384813788,1757568655628,-500.0,0.00017065,2]
[384813790,1757568655637,-500.0,0.00017065,2]
[384813791,1757568655646,-500.0,0.00017065,2]
[384813793,1757568655657,-2967.6,0.00017083,2]
[384813795,1757568655666,-480.0,0.00017083,2]
[384813798,1757568655676,-796.52,0.00017083,2]
[384813800,1757568655688,-555.6,0.00017083,2]
[384813801,1757568655698,-480.0,0.00017083,2]
[384813803,1757568655715,-868.52,0.00017083,2]
[384813805,1757568655724,-480.0,0.00017083,2]
[384813807,1757568655733,-480.0,0.00017083,2]
[384813809,1757568655743,-549.11,0.00017083,2]
[384813812,1757568655752,-2151.42,0.00017083,2]
[384813813,1757568655762,-3384.26,0.00017083,2]
[384813816,1757568655771,-480.0,0.00017083,2]
[384813817,1757568655780,-3000.0,0.0001715,2]
[384813820,1757568655789,-626.05951837,0.0001716,2]
[384813822,1757568655798,-3500.0,0.0001716,2]
[384813823,1757568655807,-803.40191391,0.0001716,2]
[384813827,1757568655834,-1702.06635748,0.0001716,2]
[384813829,1757568655844,-549.38,0.00017182,2]
[384813830,1757568655854,-640.63,0.00017182,2]
[384813831,1757568655863,-538.78244846,0.00017182,2]
[384813832,1757568655874,-1360.57755154,0.00017182,2]
[384813833,1757568655883,-480.0,0.00017182,2]
[384813834,1757568655893,-480.0,0.00017183,2]
[384813835,1757568655902,-480.0,0.00017183,2]
[384813836,1757568655911,-480.0,0.00017186,2]
[384813837,1757568655920,-1282.08,0.00017186,2]
[384813839,1757568655929,-151.0,0.000172,2]
[384813841,1757568655938,-896.0756153,0.00017255,2]
[384813843,1757568655948,-1041.65711767,0.0001726,2]
[384813845,1757568655959,-458.34288233,0.0001726,2]
[384813847,1757568655968,-151.0,0.000173,2]
[384813849,1757568655978,-151.0,0.000173,2]
[384813851,1757568655987,-409.0,0.00017301,2]
[384813853,1757568655997,-2967.6,0.00017357,2]
[384813855,1757568656007,-480.0,0.00017357,2]
[384813857,1757568656017,-796.52,0.00017357,2]
[384813859,1757568656026,-555.6,0.00017357,2]
[384813861,1757568656035,-480.0,0.00017357,2]
[384813863,1757568656045,-868.52,0.00017357,2]
[384813865,1757568656055,-480.0,0.00017357,2]
[384813868,1757568656064,-65.24325961,0.00017357,2]
[384813907,1757568656416,207.196183,0.00013699,2]
[384813915,1757568656483,174.1,0.00012329,2]
[384813967,1757568656949,480.0,0.00013795,2]
[384813977,1757568657035,174.1,0.00012205,2]
[384813998,1757568657221,480.0,0.00013795,2]
[384814032,1757568657723,480.0,0.00013795,2]
[384814033,1757568659602,480.0,0.00013795,2]
[384814034,1757568661788,500.0,0.00013795,2]
[384814035,1757568664243,500.0,0.00013795,2]
[384814036,1757568664287,500.0,0.00013795,2]
[384814037,1757568664322,295.02017232,0.00013795,2]
[384814038,1757568664355,312.77237701,0.00013795,2]
[384814039,1757568665969,81.92145827,0.00013734,2]
[384814040,1757568665995,71.46231444,0.00013734,2]
[384814041,1757568666676,480.0,0.00013795,2]
[384814042,1757568667528,480.0,0.00013795,2]
[384814043,1757568672509,500.0,0.00013795,2]
[384814044,1757568672550,500.0,0.00013795,2]
[384814045,1757568672582,500.0,0.00013795,2]
[384814046,1757568672618,500.0,0.00013795,2]
[384814047,1757568672651,500.0,0.00013795,2]
[384814048,1757568672686,500.0,0.00013795,2]
[384814049,1757568672718,500.0,0.00013795,2]
[384814050,1757568672751,339.84092591,0.00013795,2]
[384814051,1757568672786,500.0,0.00013795,2]
[384814052,1757568672817,459.44379037,0.00013795,2]
[384814053,1757568672851,500.0,0.00013795,2]
[384814054,1757568672890,450.0,0.00013795,2]
[384814055,1757568672928,500.0,0.00013795,2]
[384814056,1757568672966,500.0,0.00013795,2]
[384814057,1757568673005,500.0,0.00013795,2]
[384814058,1757568681868,480.0,0.00013795,2]
[384814059,1757568682525,500.0,0.00013795,2]
[384814060,1757568682561,371.09645834,0.00013795,2]
[384814061,1757568682604,368.16651094,0.00013795,2]
[384814062,1757568682632,131.83348906,0.00013795,2]
[384814063,1757568682666,500.0,0.00013795,2]
[384814064,1757568682714,457.54304448,0.00013795,2]
[384814065,1757568682748,500.0,0.00013795,2]
[384814066,1757568682781,500.0,0.00013795,2]
[384814067,1757568682815,500.0,0.00013795,2]
[384814068,1757568682848,500.0,0.00013795,2]
[384814069,1757568682881,500.0,0.00013795,2]
[384814070,1757568682914,500.0,0.00013795,2]
[384814071,1757568682948,500.0,0.00013795,2]
[384814072,1757568682991,500.0,0.00013795,2]
[384814073,1757568684022,312.1,0.00027397,120]
[384814074,1757568685939,480.0,0.00013795,2]
[384814075,1757568690973,480.0,0.00013795,2]
[384814076,1757568691398,500.0,0.00013795,2]
[384814077,1757568691434,500.0,0.00013795,2]
[384814078,1757568691473,500.0,0.00013795,2]
[384814079,1757568691508,500.0,0.00013795,2]
[384814080,1757568691554,500.0,0.00013795,2]
[384814081,1757568691593,500.0,0.00013795,2]
[384814082,1757568691659,500.0,0.00013795,2]
[384814083,1757568691696,450.63346646,0.00013795,2]
[384814084,1757568691724,49.36653354,0.00013795,2]
[384814085,1757568691757,500.0,0.00013795,2]
[384814086,1757568691796,500.0,0.00013795,2]
[384814087,1757568691831,500.0,0.00013795,2]
[384814088,1757568691866,500.0,0.00013795,2]
[384814089,1757568691900,500.0,0.00013795,2]
[384814090,1757568691935,500.0,0.00013795,2]
[384814091,1757568691968,500.0,0.00013795,2]
[384814092,1757568692002,193.71051893,0.00013795,2]
[384814093,1757568692036,500.0,0.00013795,2]
[384814094,1757568692104,500.0,0.00013795,2]
[384814095,1757568693765,480.0,0.00013795,2]
[384814096,1757568697244,208.644244,0.00024,30]
[384814097,1757568697279,257.23275416,0.00013795,2]
[384814098,1757568698531,609.07107543,0.00013795,2]
[384814100,1757568700416,480.0,0.00013795,2]
[384814101,1757568700680,480.0,0.00013795,2]
[384814102,1757568701577,614.061879,0.00024,30]
[384814103,1757568702148,870.54,0.00013795,2]
[384814104,1757568705015,480.0,0.00013795,2]
[384814105,1757568706002,488.92,0.00013795,2]
[384814106,1757568731059,1000.0,0.00018861,20]
[384814107,1757568732275,250.0,0.0001283,2]
[384814108,1757568734586,-697.0,0.00013558,2]
[384814109,1757568734620,-697.0,0.00013695,2]
[384814110,1757568742918,1815.38306729,0.00013559,2]
[384814111,1757568751002,5396.62693271,0.00012894,2]
[384814112,1757568751027,4603.37306729,0.00012894,2]
[384814113,1757568753062,272.37949959,0.00013559,2]
[384814114,1757568761778,286.1293336,0.00013559,2]
[384814115,1757568766095,314.61912151,0.00013695,2]
[384814116,1757568766953,550.83811605,0.00013695,2]
[384814117,1757568766987,500.0,0.00013695,2]
[384814118,1757568767021,500.0,0.00013695,2]
[384814119,1757568767193,500.0,0.00013695,2]
[384814120,1757568767238,500.0,0.00013695,2]
[384814121,1757568767270,500.0,0.00013695,2]
[384814122,1757568767305,211.37218834,0.00013695,2]
[384814123,1757568767341,500.0,0.00013695,2]
[384814124,1757568767378,500.0,0.00013695,2]
[384814125,1757568775086,261.29867362,0.00013695,2]
[384814126,1757568775110,3155.3648815,0.00013695,2]
[384814127,1757568783122,300.0,0.00013695,2]
[384814128,1757568788586,151.0,0.000134,2]
[384814129,1757568788877,151.0,0.000126,2]
[384814130,1757568789179,151.0,0.000118,2]
[384814131,1757568789493,151.0,0.00011,2]
[384814132,1757568800970,248.64,0.00012329,2]
[384814133,1757568804742,553.8740024,0.00013695,2]
[384814134,1757568842964,300.0,0.00013695,2]
[384814135,1757568897844,1255.0,0.00013559,2]
[384814136,1757568902990,300.0,0.00013695,2]
[384814137,1757568903449,489.0,0.00013695,2]
[384814138,1757568915471,530.95967032,0.00013559,2]
[384814139,1757568925720,1255.0,0.00013559,2]
[384814140,1757568929636,500.0,0.00013695,2]
[384814141,1757568950778,2510.0,0.00013559,2]
[384814143,1757568959202,2860.05032968,0.00013598,2]
[384814144,1757568959226,711.78427524,0.00013598,2]
[384814145,1757568963103,300.0,0.00013695,2]
[384814146,1757568977288,1255.0,0.00013559,2]
[384814147,1757568994408,823.27687916,0.00013559,2]
[384814148,1757569002996,2355.58758382,0.00013559,2]
[384814149,1757569022751,300.0,0.00013695,2]
[384814150,1757569029844,1255.0,0.00013559,2]
[384814151,1757569048011,500.0,0.00013695,2]
[384814152,1757569054138,1000.0,0.000136,2]
[384814153,1757569055011,1255.0,0.00013559,2]
[384814154,1757569072990,244.36126178,0.00013559,2]
[384814155,1757569073015,1010.63873822,0.00013559,2]
[384814156,1757569083002,300.0,0.00013695,2]
[384814158,1757569088553,1022.22,0.00027,120]
[384814159,1757569116350,2733.33084412,0.00013598,2]
[384814160,1757569116790,-376.13947647,0.00013696,2]
[384814161,1757569142878,300.0,0.00013695,2]
[384814162,1757569148402,666.0,0.00012772,2]
[384814164,1757569169783,500.0,0.00013695,2]
[384814165,1757569202884,300.0,0.00013695,2]
[384814166,1757569214412,4190.04041766,0.00013598,2]
[384814167,1757569214436,957.35728637,0.00013598,2]
[384814168,1757569225233,-500.0,0.00013688,2]
[384814169,1757569225266,-500.0,0.00013688,2]
[384814170,1757569225298,-500.0,0.00013688,2]
[384814171,1757569225330,-500.0,0.00013688,2]
[384814172,1757569225361,-500.0,0.00013688,2]
[384814173,1757569225393,-500.0,0.00013688,2]
[384814174,1757569225573,500.0,0.00013688,2]
[384814175,1757569226717,500.0,0.00013688,2]
[384814176,1757569228015,500.0,0.00013688,2]
[384814177,1757569228765,500.0,0.00013688,2]
[384814178,1757569229478,500.0,0.00013688,2]
[384814179,1757569230756,500.0,0.00013688,2]
[384814180,1757569232009,500.0,0.00013688,2]
[384814181,1757569232705,500.0,0.00013688,2]
[384814182,1757569233959,0.01,0.00013688,2]
[384814183,1757569233986,499.99,0.00013688,2]
[384814184,1757569235217,500.0,0.00013688,2]
[384814185,1757569235918,500.0,0.00013688,2]
[384814186,1757569237140,500.0,0.00013688,2]
[384814187,1757569239341,612.48697152,0.00013559,2]
[384814188,1757569247891,623.731066,0.00024,30]
[384814189,1757569251547,999.0,0.000136,2]
[384814190,1757569256057,1252.05798126,0.00013559,2]
[384814191,1757569262686,300.0,0.00013695,2]
[384814192,1757569281729,153.38377271,0.00013559,2]
[384814193,1757569291860,500.0,0.00013695,2]
[384814194,1757569299921,209.782303,0.00024,30]
[384814195,1757569300053,153.38377271,0.00013559,2]
[384814196,1757569323194,300.0,0.00013695,2]